fUSD/lending_fUSD_20240426
["ID","MTS","AMOUNT","RATE_DAILY","PERIOD"]
[323657581,1714149067762,-509.33,0.00012363,2]
[323657582,1714149067771,-811.87,0.00012363,2]
[323657583,1714149067781,-500.0,0.00012363,2]
[323657584,1714149067790,-500.0,0.00012363,2]
[323657585,1714149067799,-1636.0,0.00012363,2]
[323657586,1714149067808,-1421.16,0.00012363,2]
[323657587,1714149067817,-500.0,0.00012363,2]
[323657588,1714149067826,-500.0,0.00012363,2]
[323657589,1714149067835,-500.0,0.00012363,2]
[323657590,1714149067844,-500.0,0.00012363,2]
[323657591,1714149067853,-1308.57,0.00012363,2]
[323657592,1714149067862,-500.0,0.00012363,2]
[323657593,1714149067871,-912.43,0.00012363,2]
[323657594,1714149067881,-1025.96,0.00012363,2]
[323657595,1714149067890,-595.72,0.00012363,2]
[323657596,1714149067899,-704.0,0.00012367,2]
[323657597,1714149067909,-293.63828163,0.00012468,2]
[323657598,1714149067918,-10803.67982245,0.0001248,2]
[323657599,1714149067928,-152.22958301,0.000125,2]
[323657600,1714149067937,-2200.0,0.000125,4]
[323657601,1714149067946,-293.63828163,0.00012576,2]
[323657602,1714149067956,-305.07640914,0.00012581,2]
[323657603,1714149067965,-282.30958696,0.00012581,2]
[323657604,1714149067975,-400.0,0.000126,4]
[323657605,1714149067984,-1215.61,0.00012633,2]
[323657606,1714149067993,-1429.39,0.00012633,2]
[323657607,1714149068002,-1594.72,0.00012633,2]
[323657608,1714149068012,-500.0,0.00012633,2]
[323657609,1714149068021,-2223.39,0.00012633,2]
[323657610,1714149068031,-2265.82,0.00012633,2]
[323657611,1714149068041,-1882.35,0.00012633,2]
[323657612,1714149068050,-1829.8,0.00012633,2]
[323657613,1714149068059,-1753.72,0.00012633,2]
[323657614,1714149068069,-1059.05,0.00012633,2]
[323657615,1714149068079,-2704.06,0.00012633,2]
[323657616,1714149068088,-5630.56,0.00012633,2]
[323657617,1714149068097,-2240.19,0.00012633,2]
[323657618,1714149068107,-3623.87,0.00012633,2]
[323657619,1714149068116,-3058.36,0.00012633,2]
[323657620,1714149068126,-1174.95,0.00012633,2]
[323657621,1714149068135,-1244.22,0.00012633,2]
[323657622,1714149068145,-993.15,0.00012633,2]
[323657623,1714149068154,-1322.94,0.00012633,2]
[323657624,1714149068163,-500.0,0.00012633,2]
[323657625,1714149068173,-3154.83,0.00012633,2]
[323657626,1714149068182,-6065.55,0.00012633,2]
[323657627,1714149068192,-500.0,0.00012633,2]
[323657628,1714149068201,-500.0,0.00012633,2]
[323657629,1714149068211,-500.0,0.00012633,2]
[323657630,1714149068220,-500.0,0.00012633,2]
[323657631,1714149068230,-500.0,0.00012633,2]
[323657632,1714149068239,-500.0,0.00012633,2]
[323657633,1714149068249,-500.0,0.00012633,2]
[323657634,1714149068258,-3289.42,0.00012633,2]
[323657635,1714149068267,-500.0,0.00012634,2]
[323657636,1714149068276,-500.0,0.00012634,2]
[323657637,1714149068287,-500.0,0.00012634,2]
[323657638,1714149068300,-500.0,0.00012634,2]
[323657639,1714149068309,-612.86,0.00012634,2]
[323657640,1714149068320,-500.0,0.00012634,2]
[323657641,1714149068328,-500.0,0.00012634,2]
[323657642,1714149068339,-640.17,0.00012634,2]
[323657643,1714149068349,-500.0,0.00012634,2]
[323657644,1714149068358,-500.0,0.00012634,2]
[323657645,1714149068368,-644.23,0.00012634,2]
[323657646,1714149068378,-1256.86,0.00012634,2]
[323657647,1714149068389,-503.72,0.00012634,2]
[323657648,1714149068398,-539.34,0.00012634,2]
[323657649,1714149068407,-648.46308511,0.00012634,2]
[323657650,1714149068416,-410.88,0.00012634,2]
[323657651,1714149068426,-500.0,0.00012634,2]
[323657652,1714149068435,-500.0,0.00012634,2]
[323657653,1714149068445,-500.0,0.00012634,2]
[323657654,1714149068454,-1210.85,0.00012634,2]
[323657655,1714149068464,-500.0,0.00012634,2]
[323657656,1714149068473,-500.0,0.00012634,2]
[323657657,1714149068482,-616.79,0.00012634,2]
[323657658,1714149068491,-500.0,0.00012634,2]
[323657659,1714149068500,-500.0,0.00012634,2]
[323657660,1714149068510,-500.0,0.00012634,2]
[323657661,1714149068519,-500.0,0.00012634,2]
[323657662,1714149068528,-1046.89,0.00012634,2]
[323657663,1714149068537,-545.92,0.00012634,2]
[323657664,1714149068546,-500.0,0.00012634,2]
[323657665,1714149068555,-1662.26,0.00012634,2]
[323657666,1714149068565,-1614.92,0.00012634,2]
[323657667,1714149068574,-500.0,0.00012634,2]
[323657668,1714149068582,-500.0,0.00012634,2]
[323657669,1714149068591,-500.0,0.00012634,2]
[323657670,1714149068601,-540.35,0.00012634,2]
[323657671,1714149068610,-1901.7,0.00012634,2]
[323657672,1714149068619,-465.36,0.00012634,2]
[323657673,1714149068628,-500.0,0.00012634,2]
[323657674,1714149068638,-500.0,0.00012634,2]
[323657675,1714149068647,-500.0,0.00012634,2]
[323657676,1714149068656,-599.77,0.00012634,2]
[323657677,1714149068665,-396.38,0.00012634,2]
[323657678,1714149068674,-500.0,0.00012634,2]
[323657679,1714149068684,-500.0,0.00012634,2]
[323657680,1714149068693,-550.39,0.00012634,2]
[323657681,1714149068703,-662.42,0.00012634,2]
[323657682,1714149068713,-1748.51,0.00012634,2]
[323657683,1714149068722,-623.8,0.00012634,2]
[323657684,1714149068732,-500.0,0.00012634,2]
[323657685,1714149068741,-500.0,0.00012634,2]
[323657686,1714149068750,-500.0,0.00012634,2]
[323657687,1714149068759,-529.75,0.00012634,2]
[323657688,1714149068768,-2131.48,0.00012634,2]
[323657689,1714149068778,-500.0,0.00012634,2]
[323657690,1714149068787,-1276.19,0.00012634,2]
[323657691,1714149068796,-1531.16,0.00012634,2]
[323657692,1714149068805,-500.0,0.00012634,2]
[323657693,1714149068815,-1269.59,0.00012634,2]
[323657694,1714149068825,-500.0,0.00012634,2]
[323657695,1714149068835,-4251.17,0.00012634,2]
[323657696,1714149068845,-500.0,0.00012634,2]
[323657697,1714149068854,-4257.92,0.00012634,2]
[323657698,1714149068864,-651.9,0.00012634,2]
[323657699,1714149068874,-500.0,0.00012634,2]
[323657700,1714149068883,-11294.83,0.00012634,2]
[323657701,1714149068893,-10697.7,0.00012634,2]
[323657702,1714149068903,-1273.7,0.00012634,2]
[323657703,1714149068912,-8953.63,0.00012634,2]
[323657704,1714149068921,-1159.49,0.00012634,2]
[323657705,1714149068931,-690.73,0.00012634,2]
[323657706,1714149068946,-1691.65,0.00012634,2]
[323657707,1714149068961,-3003.83,0.00012634,2]
[323657708,1714149068978,-500.0,0.00012634,2]
[323657709,1714149068990,-500.0,0.00012634,2]
[323657710,1714149069003,-7101.95,0.00012634,2]
[323657711,1714149069017,-1555.56,0.00012634,2]
[323657712,1714149069032,-4530.65,0.00012634,2]
[323657713,1714149069047,-4768.14,0.00012634,2]
[323657714,1714149069059,-500.0,0.00012634,2]
[323657715,1714149069073,-2093.19,0.00012634,2]
[323657716,1714149069087,-500.0,0.00012634,2]
[323657717,1714149069101,-926.04,0.00012634,2]
[323657718,1714149069116,-3870.0,0.00012634,2]
[323657719,1714149069130,-1291.96,0.00012634,2]
[323657720,1714149069142,-8548.33,0.00012634,2]
[323657721,1714149069158,-284.43184862,0.00012634,2]
[323657722,1714149069173,-1681.81,0.00012634,2]
[323657723,1714149069187,-500.0,0.00012634,2]
[323657724,1714149069201,-4033.69,0.00012634,2]
[323657725,1714149069214,-500.0,0.00012634,2]
[323657726,1714149069228,-500.0,0.00012634,2]
[323657727,1714149069244,-2496.7,0.00012634,2]
[323657728,1714149069260,-1556.69,0.00012634,2]
[323657729,1714149069273,-11394.29,0.00012634,2]
[323657730,1714149069285,-254.58420844,0.00012634,2]
[323657731,1714149069298,-1843.36,0.00012634,2]
[323657732,1714149069315,-506.07,0.00012634,2]
[323657733,1714149069327,-500.0,0.00012634,2]
[323657734,1714149069343,-1389.23,0.00012634,2]
[323657735,1714149069355,-500.0,0.00012634,2]
[323657736,1714149069366,-1518.43,0.00012634,2]
[323657737,1714149069380,-2729.76,0.00012634,2]
[323657738,1714149069393,-4703.85,0.00012634,2]
[323657739,1714149069406,-508.7433512,0.00012634,2]
[323657740,1714149069419,-500.0,0.00012634,2]
[323657741,1714149069432,-1279.26,0.00012634,2]
[323657742,1714149069445,-3034.77,0.00012634,2]
[323657743,1714149069458,-500.0,0.00012634,2]
[323657744,1714149069471,-969.04,0.00012634,2]
[323657745,1714149069484,-1759.99,0.00012634,2]
[323657746,1714149069497,-1412.85,0.00012634,2]
[323657747,1714149069509,-966.37,0.00012634,2]
[323657748,1714149069522,-2072.39,0.00012634,2]
[323657749,1714149069534,-1812.94,0.00012634,2]
[323657750,1714149069546,-500.0,0.00012634,2]
[323657751,1714149069559,-2203.74,0.00012634,2]
[323657752,1714149069572,-1927.61,0.00012634,2]
[323657753,1714149069586,-500.0,0.00012634,2]
[323657754,1714149069599,-500.0,0.00012634,2]
[323657755,1714149069612,-2371.03,0.00012634,2]
[323657756,1714149069624,-729.64,0.00012634,2]
[323657757,1714149069637,-1215.65,0.00012634,2]
[323657758,1714149069649,-3099.52,0.00012634,2]
[323657759,1714149069662,-2129.57,0.00012634,2]
[323657760,1714149069674,-1060.07,0.00012634,2]
[323657761,1714149069686,-705.27,0.00012634,2]
[323657762,1714149069698,-739.6,0.00012634,2]
[323657763,1714149069711,-3133.69,0.00012634,2]
[323657764,1714149069724,-519.7,0.00012634,2]
[323657765,1714149069736,-500.0,0.00012634,2]
[323657766,1714149069752,-1075.86,0.00012634,2]
[323657767,1714149069764,-2025.92,0.00012634,2]
[323657768,1714149069777,-500.0,0.00012634,2]
[323657769,1714149069790,-500.0,0.00012634,2]
[323657770,1714149069804,-500.0,0.00012634,2]
[323657771,1714149069817,-500.0,0.00012634,2]
[323657772,1714149069830,-2207.6,0.00012634,2]
[323657773,1714149069842,-500.0,0.00012634,2]
[323657774,1714149069854,-1550.86,0.00012634,2]
[323657775,1714149069867,-500.0,0.00012634,2]
[323657776,1714149069879,-4090.88,0.00012634,2]
[323657777,1714149069891,-500.0,0.00012635,2]
[323657778,1714149069903,-959.36,0.00012635,2]
[323657779,1714149069915,-500.0,0.00012635,2]
[323657780,1714149069927,-500.0,0.00012635,2]
[323657781,1714149069939,-500.0,0.00012635,2]
[323657782,1714149069952,-500.0,0.00012635,2]
[323657783,1714149069964,-500.0,0.00012635,2]
[323657784,1714149069977,-500.0,0.00012635,2]
[323657785,1714149069990,-500.0,0.00012635,2]
[323657786,1714149070001,-500.0,0.00012635,2]
[323657787,1714149070013,-500.0,0.00012635,2]
[323657788,1714149070025,-500.0,0.00012635,2]
[323657789,1714149070038,-500.0,0.00012635,2]
[323657790,1714149070050,-500.0,0.00012635,2]
[323657791,1714149070063,-798.65,0.00012635,2]
[323657792,1714149070076,-707.36,0.00012635,2]
[323657793,1714149070088,-500.0,0.00012635,2]
[323657794,1714149070100,-500.0,0.00012635,2]
[323657795,1714149070113,-500.0,0.00012635,2]
[323657796,1714149070125,-807.88,0.00012635,2]
[323657797,1714149070138,-500.0,0.00012635,2]
[323657798,1714149070155,-500.0,0.00012635,2]
[323657799,1714149070167,-500.0,0.00012635,2]
[323657800,1714149070179,-824.86,0.00012635,2]
[323657801,1714149070192,-750.16,0.00012635,2]
[323657802,1714149070204,-500.0,0.00012635,2]
[323657803,1714149070216,-557.29,0.00012635,2]
[323657804,1714149070229,-500.0,0.00012635,2]
[323657805,1714149070242,-1368.69,0.00012635,2]
[323657806,1714149070254,-500.0,0.00012635,2]
[323657807,1714149070267,-500.0,0.00012635,2]
[323657808,1714149070279,-500.0,0.00012635,2]
[323657809,1714149070292,-500.0,0.00012635,2]
[323657810,1714149070309,-500.0,0.00012635,2]
[323657811,1714149070323,-866.63,0.00012635,2]
[323657812,1714149070336,-1082.99,0.00012635,2]
[323657813,1714149070349,-1030.07,0.00012635,2]
[323657814,1714149070363,-500.0,0.00012635,2]
[323657815,1714149070376,-889.41,0.00012635,2]
[323657816,1714149070389,-500.0,0.00012635,2]
[323657817,1714149070402,-1071.85,0.00012635,2]
[323657818,1714149070416,-765.24,0.00012635,2]
[323657819,1714149070430,-500.0,0.00012635,2]
[323657820,1714149070443,-500.0,0.00012635,2]
[323657821,1714149070456,-500.0,0.00012635,2]
[323657822,1714149070470,-1283.74,0.00012635,2]
[323657823,1714149070484,-953.28,0.00012635,2]
[323657824,1714149070498,-500.0,0.00012635,2]
[323657825,1714149070512,-500.0,0.00012635,2]
[323657826,1714149070525,-2596.76,0.00012635,2]
[323657827,1714149070538,-1643.41,0.00012635,2]
[323657828,1714149070552,-706.77,0.00012635,2]
[323657829,1714149070564,-1136.67,0.00012635,2]
[323657830,1714149070580,-500.0,0.00012635,2]
[323657831,1714149070593,-1697.83,0.00012635,2]
[323657832,1714149070606,-4232.01,0.00012635,2]
[323657833,1714149070618,-500.0,0.00012635,2]
[323657834,1714149070631,-1552.48,0.00012635,2]
[323657835,1714149070644,-500.0,0.00012635,2]
[323657836,1714149070656,-500.0,0.00012635,2]
[323657837,1714149070668,-1832.06,0.00012635,2]
[323657838,1714149070681,-500.0,0.00012635,2]
[323657839,1714149070692,-941.89,0.00012635,2]
[323657840,1714149070705,-500.0,0.00012635,2]
[323657841,1714149070718,-1065.66,0.00012635,2]
[323657842,1714149070731,-12005.8,0.00012635,2]
[323657843,1714149070743,-500.0,0.00012635,2]
[323657844,1714149070755,-500.0,0.00012635,2]
[323657845,1714149070768,-9202.72,0.00012635,2]
[323657846,1714149070780,-500.0,0.00012635,2]
[323657847,1714149070792,-500.0,0.00012635,2]
[323657848,1714149070804,-502.83,0.00012635,2]
[323657849,1714149070818,-1671.97,0.00012635,2]
[323657850,1714149070830,-500.0,0.00012635,2]
[323657851,1714149070842,-2361.08,0.00012635,2]
[323657852,1714149070854,-500.0,0.00012635,2]
[323657853,1714149070865,-7952.04,0.00012635,2]
[323657854,1714149070877,-695.21,0.00012635,2]
[323657855,1714149070888,-1050.25,0.00012635,2]
[323657856,1714149070900,-500.0,0.00012635,2]
[323657857,1714149070912,-502.77,0.00012635,2]
[323657858,1714149070923,-500.0,0.00012635,2]
[323657859,1714149070934,-500.0,0.00012635,2]
[323657860,1714149070947,-500.0,0.00012635,2]
[323657861,1714149070959,-500.0,0.00012636,2]
[323657862,1714149070971,-292.23844065,0.00012636,2]
[323657863,1714149070983,-500.0,0.00012636,2]
[323657864,1714149070994,-500.0,0.00012636,2]
[323657865,1714149071007,-500.0,0.00012636,2]
[323657866,1714149071018,-500.0,0.00012636,2]
[323657867,1714149071030,-500.0,0.00012636,2]
[323657868,1714149071042,-500.0,0.00012636,2]
[323657869,1714149071054,-500.0,0.00012636,2]
[323657870,1714149071066,-500.0,0.00012636,2]
[323657871,1714149071079,-500.0,0.00012636,2]
[323657872,1714149071091,-256.96014826,0.00012636,2]
[323657873,1714149071104,-500.0,0.00012636,2]
[323657874,1714149071116,-500.0,0.00012636,2]
[323657875,1714149071129,-312.94406487,0.00012636,2]
[323657876,1714149071142,-500.0,0.00012636,2]
[323657877,1714149071156,-500.0,0.00012636,2]
[323657878,1714149071170,-630.99165354,0.00012636,2]
[323657879,1714149071185,-500.0,0.00012636,2]
[323657880,1714149071198,-500.0,0.00012636,2]
[323657881,1714149071211,-500.0,0.00012636,2]
[323657882,1714149071225,-500.0,0.00012636,2]
[323657883,1714149071238,-500.0,0.00012636,2]
[323657884,1714149071252,-567.48521921,0.00012636,2]
[323657885,1714149071263,-500.0,0.00012636,2]
[323657886,1714149071273,-500.0,0.00012636,2]
[323657887,1714149071281,-478.92166455,0.00012636,2]
[323657888,1714149071609,-500.0,0.00012636,2]
[323657889,1714149071637,-539.46,0.00012636,2]
[323657890,1714149071660,-500.0,0.00012636,2]
[323657891,1714149071670,-500.0,0.00012636,2]
[323657892,1714149071681,-500.0,0.00012636,2]
[323657893,1714149071691,-327.17323977,0.00012636,2]
[323657894,1714149071700,-500.0,0.00012636,2]
[323657895,1714149071710,-500.0,0.00012636,2]
[323657896,1714149071719,-500.0,0.00012636,2]
[323657897,1714149071729,-500.0,0.00012636,2]
[323657898,1714149071738,-500.0,0.00012636,2]
[323657899,1714149071747,-235.8071716,0.00012636,2]
[323657900,1714149071757,-521.03132701,0.00012636,2]
[323657901,1714149071767,-500.0,0.00012636,2]
[323657902,1714149071778,-593.94,0.00012636,2]
[323657903,1714149071790,-500.0,0.00012636,2]
[323657904,1714149071801,-500.0,0.00012636,2]
[323657905,1714149071811,-643.25948352,0.00012636,2]
[323657906,1714149071823,-500.0,0.00012636,2]
[323657907,1714149071834,-500.0,0.00012636,2]
[323657908,1714149071843,-500.0,0.00012636,2]
[323657909,1714149071854,-500.0,0.00012636,2]
[323657910,1714149071865,-500.0,0.00012636,2]
[323657911,1714149071875,-500.0,0.00012636,2]
[323657912,1714149071884,-500.0,0.00012636,2]
[323657913,1714149071894,-500.0,0.00012636,2]
[323657914,1714149071905,-500.0,0.00012636,2]
[323657915,1714149071915,-500.0,0.00012636,2]
[323657916,1714149071925,-500.0,0.00012636,2]
[323657917,1714149071935,-500.0,0.00012636,2]
[323657918,1714149071946,-189.88,0.00012636,2]
[323657919,1714149071957,-500.0,0.00012636,2]
[323657920,1714149071967,-500.0,0.00012636,2]
[323657921,1714149071978,-6178.5,0.00012636,2]
[323657922,1714149071987,-780.26,0.00012636,2]
[323657923,1714149071997,-2459.65,0.00012636,2]
[323657924,1714149072006,-500.0,0.00012636,2]
[323657925,1714149072016,-500.0,0.00012636,2]
[323657926,1714149072025,-500.0,0.00012636,2]
[323657927,1714149072035,-500.0,0.00012636,2]
[323657928,1714149072044,-2405.25,0.00012636,2]
[323657929,1714149072054,-281.89,0.00012636,2]
[323657930,1714149072064,-3836.22,0.00012636,2]
[323657931,1714149072076,-500.0,0.00012636,2]
[323657932,1714149072085,-500.0,0.00012636,2]
[323657933,1714149072095,-500.0,0.00012636,2]
[323657934,1714149072105,-500.0,0.00012636,2]
[323657935,1714149072114,-2049.54,0.00012636,2]
[323657936,1714149072124,-500.0,0.00012636,2]
[323657937,1714149072134,-500.0,0.00012636,2]
[323657938,1714149072144,-3945.37,0.00012636,2]
[323657939,1714149072154,-616.61082888,0.00012636,2]
[323657940,1714149072163,-2408.93,0.00012636,2]
[323657941,1714149072173,-2588.33,0.00012636,2]
[323657942,1714149072183,-500.0,0.00012636,2]
[323657943,1714149072192,-500.0,0.00012636,2]
[323657944,1714149072202,-500.0,0.00012636,2]
[323657945,1714149072211,-2855.65,0.00012636,2]
[323657946,1714149072221,-5750.0,0.00012636,2]
[323657947,1714149072230,-500.0,0.00012636,2]
[323657948,1714149072239,-6585.94,0.00012636,2]
[323657949,1714149072248,-500.0,0.00012636,2]
[323657950,1714149072259,-2628.03,0.00012636,2]
[323657951,1714149072268,-500.0,0.00012636,2]
[323657952,1714149072277,-503.4,0.00012636,2]
[323657953,1714149072287,-500.0,0.00012636,2]
[323657954,1714149072300,-500.0,0.00012636,2]
[323657955,1714149072309,-4598.48,0.00012636,2]
[323657956,1714149072321,-500.0,0.00012636,2]
[323657957,1714149072330,-2634.56,0.00012636,2]
[323657958,1714149072340,-6283.58,0.00012636,2]
[323657959,1714149072351,-500.0,0.00012636,2]
[323657960,1714149072360,-500.0,0.00012636,2]
[323657961,1714149072370,-8055.65,0.00012636,2]
[323657962,1714149072379,-1633.49,0.00012636,2]
[323657963,1714149072390,-316.62,0.00012636,2]
[323657964,1714149072399,-500.0,0.00012636,2]
[323657965,1714149072408,-1923.8,0.00012636,2]
[323657966,1714149072419,-500.0,0.00012636,2]
[323657967,1714149072428,-500.0,0.00012636,2]
[323657968,1714149072437,-387.2,0.00012636,2]
[323657969,1714149072446,-4065.88,0.00012636,2]
[323657970,1714149072456,-500.0,0.00012637,2]
[323657971,1714149072466,-500.0,0.00012637,2]
[323657972,1714149072475,-500.0,0.00012637,2]
[323657973,1714149072485,-500.0,0.00012637,2]
[323657974,1714149072495,-500.0,0.00012637,2]
[323657975,1714149072504,-500.0,0.00012637,2]
[323657976,1714149072513,-500.0,0.00012637,2]
[323657977,1714149072523,-500.0,0.00012637,2]
[323657978,1714149072532,-500.0,0.00012637,2]
[323657979,1714149072541,-500.0,0.00012637,2]
[323657980,1714149072550,-500.0,0.00012637,2]
[323657981,1714149072560,-500.0,0.00012637,2]
[323657982,1714149072571,-500.0,0.00012637,2]
[323657983,1714149072580,-500.0,0.00012637,2]
[323657984,1714149072589,-500.0,0.00012637,2]
[323657985,1714149072598,-500.0,0.00012637,2]
[323657986,1714149072606,-500.0,0.00012637,2]
[323657987,1714149072616,-500.0,0.00012637,2]
[323657988,1714149072625,-500.0,0.00012637,2]
[323657989,1714149072634,-500.0,0.00012637,2]
[323657990,1714149072644,-500.0,0.00012637,2]
[323657991,1714149072654,-500.0,0.00012637,2]
[323657992,1714149072663,-515.92,0.00012637,2]
[323657993,1714149072673,-535.2,0.00012637,2]
[323657994,1714149072683,-500.0,0.00012637,2]
[323657995,1714149072692,-500.0,0.00012637,2]
[323657996,1714149072701,-626.49532512,0.00012637,2]
[323657997,1714149072710,-500.0,0.00012637,2]
[323657998,1714149072719,-574.18024118,0.00012637,2]
[323657999,1714149072729,-1407.85,0.00012637,2]
[323658000,1714149072738,-500.0,0.00012637,2]
[323658001,1714149072748,-500.0,0.00012637,2]
[323658002,1714149072757,-500.0,0.00012637,2]
[323658003,1714149072766,-500.0,0.00012637,2]
[323658004,1714149072776,-636.11,0.00012637,2]
[323658005,1714149072785,-500.0,0.00012637,2]
[323658006,1714149072795,-500.0,0.00012637,2]
[323658007,1714149072804,-559.40146233,0.00012637,2]
[323658008,1714149072813,-662.59,0.00012637,2]
[323658009,1714149072824,-500.0,0.00012637,2]
[323658010,1714149072835,-500.0,0.00012637,2]
[323658011,1714149072845,-509.33,0.00012637,2]
[323658012,1714149072854,-811.87,0.00012637,2]
[323658013,1714149072864,-500.0,0.00012637,2]
[323658014,1714149072873,-500.0,0.00012637,2]
[323658015,1714149072882,-1636.0,0.00012637,2]
[323658016,1714149072892,-1421.16,0.00012637,2]
[323658017,1714149072902,-500.0,0.00012637,2]
[323658018,1714149072911,-500.0,0.00012637,2]
[323658019,1714149072921,-500.0,0.00012637,2]
[323658020,1714149072930,-500.0,0.00012637,2]
[323658021,1714149072940,-1308.57,0.00012637,2]
[323658022,1714149072949,-500.0,0.00012637,2]
[323658023,1714149072959,-912.43,0.00012637,2]
[323658024,1714149072968,-1025.96,0.00012637,2]
[323658025,1714149072978,-595.72,0.00012637,2]
[323658026,1714149072987,-293.63828163,0.00012684,2]
[323658027,1714149072997,-418.75091594,0.000127,2]
[323658028,1714149073006,-400.0,0.000127,4]
[323658029,1714149073016,-340.5,0.00012718,2]
[323658030,1714149073025,-293.63828163,0.00012792,2]
[323658031,1714149073035,-400.0,0.000128,4]
[323658032,1714149073045,-37689.0,0.00012805,2]
[323658033,1714149073055,-5896.0,0.00012805,2]
[323658034,1714149073064,-5733.0,0.00012805,2]
[323658035,1714149073075,-2297.0,0.00012805,2]
[323658036,1714149073084,-2290.0,0.00012805,2]
[323658037,1714149073094,-462.0,0.00012805,2]
[323658038,1714149073103,-1064.656,0.00012805,2]
[323658039,1714149073112,-969.0,0.00012805,2]
[323658040,1714149073123,-1393.0,0.00012805,2]
[323658041,1714149073132,-1256.0,0.00012805,2]
[323658042,1714149073142,-1228.0,0.00012805,2]
[323658043,1714149073151,-542.0,0.00012805,2]
[323658044,1714149073160,-1228.27550537,0.0001287,2]
[323658045,1714149073169,-1000.0,0.00012896,2]
[323658046,1714149073178,-346537.66248809,0.00012896,3]
[323658047,1714149073188,-293.63828163,0.000129,2]
[323658048,1714149073197,-305.07640914,0.000129,2]
[323658049,1714149073206,-400.0,0.000129,4]
[323658050,1714149073216,-282.30958696,0.000129,2]
[323658051,1714149073225,-1215.61,0.00012907,2]
[323658052,1714149073235,-1429.39,0.00012907,2]
[323658053,1714149073244,-1594.72,0.00012907,2]
[323658054,1714149073253,-500.0,0.00012907,2]
[323658055,1714149073262,-2223.39,0.00012907,2]
[323658056,1714149073271,-2265.82,0.00012907,2]
[323658057,1714149073280,-1882.35,0.00012907,2]
[323658058,1714149073289,-1829.8,0.00012907,2]
[323658059,1714149073299,-1753.72,0.00012907,2]
[323658060,1714149073311,-1059.05,0.00012907,2]
[323658061,1714149073322,-2704.06,0.00012907,2]
[323658062,1714149073332,-5630.56,0.00012907,2]
[323658063,1714149073341,-2240.19,0.00012907,2]
[323658064,1714149073352,-3623.87,0.00012907,2]
[323658065,1714149073362,-3058.36,0.00012907,2]
[323658066,1714149073372,-1174.95,0.00012907,2]
[323658067,1714149073383,-1244.22,0.00012907,2]
[323658068,1714149073393,-993.15,0.00012907,2]
[323658069,1714149073402,-1322.94,0.00012907,2]
[323658070,1714149073412,-500.0,0.00012907,2]
[323658071,1714149073422,-3154.83,0.00012907,2]
[323658072,1714149073432,-6065.55,0.00012907,2]
[323658073,1714149073441,-500.0,0.00012907,2]
[323658074,1714149073451,-500.0,0.00012907,2]
[323658075,1714149073461,-500.0,0.00012907,2]
[323658076,1714149073472,-500.0,0.00012907,2]
[323658077,1714149073481,-500.0,0.00012907,2]
[323658078,1714149073491,-500.0,0.00012907,2]
[323658079,1714149073501,-500.0,0.00012907,2]
[323658080,1714149073511,-3289.42,0.00012907,2]